bitfinex/quotes_BTCUSD_20250215
["timestamp","ask_amount","ask_price","bid_price","bid_amount"]
[1739591580567,0.00100032,97693.0,97692.0,1.18443315]
[1739591580771,0.00100032,97693.0,97692.0,0.77294279]
[1739591580920,0.07950032,97693.0,97692.0,0.74285315]
[1739591583958,0.07950032,97693.0,97692.0,0.59285315]
[1739591584189,0.12780032,97693.0,97692.0,0.59285315]
[1739591584785,0.12780032,97693.0,97692.0,0.26815315]
[1739591588628,0.12780032,97693.0,97692.0,0.1656495]
[1739591590882,0.12780032,97693.0,97692.0,0.1586495]
[1739591591088,0.12680032,97693.0,97692.0,0.1536495]
[1739591591285,0.12680032,97693.0,97692.0,0.1566495]
[1739591591697,0.12680032,97693.0,97692.0,0.1536495]
[1739591591993,0.12680032,97693.0,97692.0,0.1556495]
[1739591592427,0.12680032,97693.0,97692.0,0.1536495]
[1739591592795,0.12680032,97693.0,97692.0,0.1546495]
[1739591593215,0.12780032,97693.0,97692.0,0.1546495]
[1739591599080,0.12780032,97693.0,97692.0,0.0011065]
[1739591599292,0.28134232,97693.0,97692.0,0.0011065]
[1739591601669,0.12780032,97693.0,97692.0,0.0011065]
[1739591603332,0.28134232,97693.0,97692.0,0.0011065]
[1739591606987,0.12780032,97693.0,97692.0,0.0011065]
[1739591611752,0.12780032,97693.0,97692.0,0.1546495]
[1739591616509,0.12780032,97693.0,97692.0,0.0011065]
[1739591618066,0.12780032,97693.0,97692.0,0.1546495]
[1739591621922,0.12780032,97693.0,97692.0,0.0011065]
[1739591622123,0.12780032,97693.0,97692.0,0.1546495]
[1739591622636,0.12780032,97693.0,97692.0,0.0011065]
[1739591622845,0.12780032,97693.0,97692.0,0.1546495]
[1739591623006,0.12780032,97693.0,97692.0,0.0011065]
[1739591623889,0.12680032,97693.0,97692.0,0.0011065]
[1739591624273,0.12780032,97693.0,97692.0,0.0011065]
[1739591624475,0.12680032,97693.0,97692.0,0.0001065]
[1739591624874,0.12780032,97693.0,97692.0,0.0001065]
[1739591625811,0.12780032,97693.0,97692.0,0.0021065]
[1739591626214,0.12780032,97693.0,97692.0,0.0001065]
[1739591626518,0.12680032,97693.0,97692.0,0.0011065]
[1739591627057,0.12780032,97693.0,97692.0,0.0011065]
[1739591628701,0.12780032,97693.0,97692.0,0.1546495]
[1739591631099,0.12780032,97693.0,97692.0,0.0011065]
[1739591634838,0.00100032,97693.0,97692.0,0.1546495]
[1739591638517,0.00100032,97693.0,97692.0,0.0011065]
[1739591641924,0.00100032,97693.0,97692.0,0.1546495]
[1739591643293,0.00100032,97693.0,97692.0,0.0011065]
[1739591658507,0.15454232,97693.0,97692.0,0.0011065]
[1739591658709,0.00100032,97693.0,97692.0,0.0011065]
[1739591659351,0.15454232,97693.0,97692.0,0.0011065]
[1739591660708,0.15454232,97693.0,97692.0,0.0001065]
[1739591660910,0.15354232,97693.0,97692.0,0.0011065]
[1739591661091,0.15454232,97693.0,97692.0,0.0011065]
[1739591661874,0.15454232,97693.0,97692.0,0.0001065]
[1739591662243,0.15454232,97693.0,97692.0,0.0011065]
[1739591662808,0.15354232,97693.0,97692.0,0.0011065]
[1739591663222,0.15454232,97693.0,97692.0,0.0011065]
[1739591673793,0.23524232,97693.0,97692.0,0.0011065]
[1739591673995,0.24287364,97693.0,97692.0,0.0011065]
[1739591674458,0.24287364,97693.0,97692.0,0.0001065]
[1739591675832,0.23524232,97693.0,97692.0,0.0011065]
[1739591675982,0.23424232,97693.0,97692.0,0.0011065]
[1739591676183,0.23924232,97693.0,97692.0,0.0001065]
[1739591676570,0.24324232,97693.0,97692.0,0.0001065]
[1739591678344,0.57406535,97693.0,97692.0,0.0001065]
[1739591680051,0.59447275,97693.0,97692.0,0.0001065]
[1739591681590,0.57406535,97693.0,97692.0,0.0001065]
[1739591693230,0.56644232,97693.0,97692.0,0.0001065]
[1739591699339,0.48574232,97693.0,97692.0,0.0001065]
[1739591704275,0.48574232,97693.0,97692.0,0.0001065]
[1739591706582,0.33220032,97693.0,97692.0,0.1536495]
[1739591708038,0.00900032,97693.0,97692.0,0.1536495]
[1739591708240,0.00900032,97693.0,97692.0,0.25615315]
[1739591708241,0.00500032,97693.0,97692.0,0.25615315]
[1739591708441,0.00600032,97693.0,97692.0,0.38395315]
[1739591709431,0.00100032,97693.0,97692.0,0.38395315]
[1739591709823,0.00400032,97693.0,97692.0,0.38395315]
[1739591711004,0.00100032,97693.0,97692.0,0.38395315]
[1739591711293,3.2e-07,97693.0,97692.0,0.38395315]
[1739591711469,0.00200032,97693.0,97692.0,0.38395315]
[1739591711677,0.00300032,97693.0,97692.0,0.38395315]
[1739591712118,0.00200032,97693.0,97692.0,0.38395315]
[1739591712509,0.00300032,97693.0,97692.0,0.38395315]
[1739591712831,0.00100032,97693.0,97692.0,0.38395315]
[1739591713111,0.00300032,97693.0,97692.0,0.38395315]
[1739591717843,0.00100032,97693.0,97692.0,0.38395315]
[1739591718049,3.2e-07,97693.0,97692.0,0.38495315]
[1739591718289,3.2e-07,97693.0,97692.0,0.38795315]
[1739591718772,3.2e-07,97693.0,97692.0,0.38495315]
[1739591719008,3.2e-07,97693.0,97692.0,0.38795315]
[1739591719432,3.2e-07,97693.0,97692.0,0.38695315]
[1739591719599,3.2e-07,97693.0,97692.0,0.38795315]
[1739591719739,3.2e-07,97693.0,97692.0,0.38695315]
[1739591720160,3.2e-07,97693.0,97692.0,0.38795315]
[1739591731390,3.2e-07,97693.0,97692.0,0.30915315]
[1739591736746,3.2e-07,97693.0,97692.0,0.26015315]
[1739591738461,3.2e-07,97693.0,97692.0,0.53615315]
[1739591741976,3.2e-07,97693.0,97692.0,0.55915315]
[1739591751271,3.2e-07,97693.0,97692.0,0.41015315]
[1739591768928,3.2e-07,97693.0,97692.0,0.1576495]
[1739591768929,0.08300032,97693.0,97692.0,0.1576495]
[1739591769162,0.08300032,97693.0,97692.0,0.0041065]
[1739591769360,0.08300032,97693.0,97692.0,0.1576495]
[1739591770291,0.08300032,97693.0,97692.0,0.1546495]
[1739591770715,0.08800032,97693.0,97692.0,0.1546495]
[1739591771397,0.08300032,97693.0,97692.0,0.1546495]
[1739591771585,0.08300032,97693.0,97692.0,0.1536495]
[1739591771768,0.09100032,97693.0,97692.0,0.1546495]
[1739591772191,0.00800032,97693.0,97692.0,0.1546495]
[1739591782113,0.00800032,97693.0,97692.0,0.25715315]
[1739591792358,0.00800032,97693.0,97692.0,0.33215315]
[1739591793507,0.00800032,97693.0,97692.0,0.48215315]
[1739591800103,0.00800032,97693.0,97692.0,0.40715315]
[1739591809863,0.00800032,97693.0,97692.0,0.43015315]
[1739591821434,0.00200032,97693.0,97692.0,0.42915315]
[1739591821593,3.2e-07,97693.0,97692.0,0.42915315]
[1739591821931,3.2e-07,97693.0,97692.0,0.43115315]
[1739591822690,0.00100032,97693.0,97692.0,0.43115315]
[1739591827403,0.00100032,97693.0,97692.0,0.40815315]
[1739591882487,0.00100032,97693.0,97692.0,0.0021065]
[1739591882488,0.23044232,97693.0,97692.0,0.0021065]
[1739591883359,0.22944232,97693.0,97692.0,0.0021065]
[1739591883583,0.23544232,97693.0,97692.0,0.0031065]
[1739591883821,0.23544232,97693.0,97692.0,0.0011065]
[1739591884047,0.23144232,97693.0,97692.0,0.0001065]
[1739591884278,0.24419787,97693.0,97692.0,0.0001065]
[1739591884510,0.25019787,97693.0,97692.0,0.0011065]
[1739591884881,0.25419787,97693.0,97692.0,0.0011065]
[1739591886017,0.25019787,97693.0,97692.0,0.0011065]
[1739591886421,0.25419787,97693.0,97692.0,0.0011065]
[1739591889872,0.23944232,97693.0,97692.0,0.0011065]
[1739591892813,0.23672968,97693.0,97692.0,0.0011065]
[1739591900181,0.25146926,97693.0,97692.0,0.0011065]
[1739591901326,0.25169292,97693.0,97692.0,0.0011065]
[1739591908485,0.254892,97693.0,97692.0,0.0011065]
[1739591911055,0.10406232,97693.0,97692.0,0.0011065]
[1739591912582,0.10086324,97693.0,97692.0,0.0011065]
[1739591912988,0.08612366,97693.0,97692.0,0.0011065]
[1739591913753,0.09375945,97693.0,97692.0,0.0011065]
[1739591917138,0.08775945,97693.0,97692.0,0.0001065]
[1739591917653,0.09475945,97693.0,97692.0,0.0011065]
[1739591918272,0.24830145,97693.0,97692.0,0.0011065]
[1739591919084,0.23730145,97693.0,97692.0,0.0001065]
[1739591919256,0.24430145,97693.0,97692.0,0.0001065]
[1739591919455,0.24930145,97693.0,97692.0,0.0001065]
[1739591919661,0.23730145,97693.0,97692.0,0.0001065]
[1739591920046,0.24930145,97693.0,97692.0,0.0001065]
[1739591920268,0.24430145,97693.0,97692.0,0.0001065]
[1739591920470,0.23730145,97693.0,97692.0,0.0001065]
[1739591920874,0.24430145,97693.0,97692.0,0.0001065]
[1739591921573,0.25030145,97693.0,97692.0,0.0001065]
[1739591923212,0.57350145,97693.0,97692.0,0.0001065]
[1739591923865,0.56650145,97693.0,97692.0,0.0001065]
[1739591923983,0.57350145,97693.0,97692.0,0.0001065]
[1739591925270,0.56750145,97693.0,97692.0,0.0001065]
[1739591925627,0.57450145,97693.0,97692.0,0.0001065]
[1739591938609,0.49860145,97693.0,97692.0,0.0001065]
[1739591941731,0.34505945,97693.0,97692.0,0.0001065]
[1739591944225,0.33805945,97693.0,97692.0,0.0001065]
[1739591944424,0.33105945,97693.0,97692.0,0.0001065]
[1739591944634,0.34505945,97693.0,97692.0,0.0001065]
[1739591950563,0.34505945,97693.0,97692.0,0.0001065]
[1739591950762,0.34505945,97693.0,97692.0,0.1536495]
[1739591951529,0.33742366,97693.0,97692.0,0.1536495]
[1739591958304,0.33742366,97693.0,97692.0,0.0001065]
[1739591959039,0.33742366,97693.0,97692.0,0.1536495]
[1739591961356,0.33742366,97693.0,97692.0,0.0001065]
[1739591961981,0.49096566,97693.0,97692.0,0.0001065]
[1739591963273,0.49859535,97693.0,97692.0,0.0001065]
[1739591982574,0.57949535,97693.0,97692.0,0.0001065]
[1739592001419,0.49859535,97693.0,97692.0,0.0001065]
[1739592003429,0.34505335,97693.0,97692.0,0.0001065]
[1739592004560,0.34505335,97693.0,97692.0,0.1536495]
[1739592004744,0.34505335,97693.0,97692.0,0.0001065]
[1739592005193,0.02185335,97693.0,97692.0,0.0001065]
[1739592005631,0.02185335,97693.0,97692.0,0.1536495]
[1739592006214,0.02185335,97693.0,97692.0,0.0001065]
[1739592006772,0.01462969,97693.0,97692.0,0.0001065]
[1739592006972,0.153533,97699.0,97693.0,0.16892546]
[1739592007219,0.153535,97698.0,97693.0,0.16892546]
[1739592007457,0.204706,97701.0,97693.0,0.16892546]
[1739592007670,0.204708,97700.0,97694.0,0.0824]
[1739592007954,0.03,97702.0,97694.0,0.0824]
[1739592008157,0.153536,97697.0,97695.0,0.00728]
[1739592008355,0.153536,97697.0,97694.0,0.0824]
[1739592009326,0.160536,97697.0,97695.0,0.001]
[1739592009682,0.153536,97697.0,97694.0,0.0824]
[1739592010097,0.160536,97697.0,97694.0,0.0834]
[1739592010236,0.160536,97697.0,97694.0,0.0824]
[1739592010648,0.164536,97697.0,97695.0,0.001]
[1739592011044,0.153537,97696.0,97695.0,0.001]
[1739592011766,0.153537,97696.0,97694.0,0.001]
[1739592011970,0.001,97697.0,97694.0,0.001]
[1739592012176,0.001,97697.0,97695.0,0.00724]
[1739592012372,0.153537,97696.0,97695.0,0.00724]
[1739592012591,0.153537,97696.0,97694.0,0.002]
[1739592013080,0.15342208,97696.0,97694.0,0.001]
[1739592013279,0.15324912,97696.0,97694.0,0.001]
[1739592013599,0.007,97697.0,97693.0,0.16892546]
[1739592013933,0.15354,97695.0,97694.0,0.001]
[1739592014143,0.15354,97695.0,97694.0,0.002]
[1739592014952,0.15333221,97695.0,97694.0,0.001]
[1739592015328,0.211714,97697.0,97693.0,0.16992546]
[1739592015546,0.15354,97694.0,97693.0,0.16892546]
[1739592015748,0.15354,97694.0,97693.0,0.16992546]
[1739592016266,0.15325094,97694.0,97693.0,0.16992546]
[1739592016469,0.15296188,97694.0,97693.0,0.16992546]
[1739592016671,0.15996188,97694.0,97693.0,0.17092546]
[1739592017236,0.15996188,97694.0,97693.0,0.16992546]
[1739592017875,0.007,97694.0,97693.0,0.16992546]
[1739592018340,0.16054,97694.0,97693.0,0.16992546]
[1739592018511,0.16654,97694.0,97693.0,0.17092546]
[1739592019028,0.16633801,97694.0,97693.0,0.17092546]
[1739592019923,0.16628114,97694.0,97693.0,0.17092546]
[1739592020295,0.16610817,97694.0,97693.0,0.17092546]
[1739592021033,0.16454327,97694.0,97693.0,0.17092546]
[1739592025877,0.3959922,97694.0,97693.0,0.17092546]
[1739592026893,0.3899922,97694.0,97693.0,0.16992546]
[1739592027518,0.38504,97694.0,97693.0,0.16892546]
[1739592027756,0.70824,97694.0,97693.0,0.16892546]
[1739592027961,0.71509606,97694.0,97693.0,0.16992546]
[1739592028381,0.70809606,97694.0,97693.0,0.16892546]
[1739592028606,0.70809606,97694.0,97693.0,0.16992546]
[1739592028800,0.77189606,97694.0,97693.0,0.16492546]
[1739592029050,0.76489606,97694.0,97693.0,0.16503196]
[1739592029247,0.75789606,97694.0,97693.0,0.16403196]
[1739592029575,0.77189606,97694.0,97693.0,0.16503196]
[1739592029784,0.88439971,97694.0,97693.0,0.16503196]
[1739592029998,0.89139971,97694.0,97693.0,0.16503196]
[1739592030228,0.87739971,97694.0,97693.0,0.16503196]
[1739592030564,0.89439971,97694.0,97693.0,0.16503196]
[1739592030776,0.88739971,97694.0,97693.0,0.16403196]
[1739592031120,0.89439971,97694.0,97693.0,0.16503196]
[1739592031570,0.88739971,97694.0,97693.0,0.16403196]
[1739592031787,0.88039971,97694.0,97693.0,0.16403196]
[1739592032006,0.88739971,97694.0,97693.0,0.16503196]
[1739592032232,0.89439971,97694.0,97693.0,0.16503196]
[1739592032459,0.88739971,97694.0,97693.0,0.16403196]
[1739592032676,0.89439971,97694.0,97693.0,0.16503196]
[1739592032899,0.88739971,97694.0,97693.0,0.16503196]
[1739592033299,0.89439971,97694.0,97693.0,0.16503196]
[1739592033879,0.88739971,97694.0,97693.0,0.16403196]
[1739592034082,0.89439971,97694.0,97693.0,0.16503196]
[1739592034283,0.88739971,97694.0,97693.0,0.16503196]
[1739592034669,0.87894972,97694.0,97693.0,0.16403196]
[1739592034867,0.88594972,97694.0,97693.0,0.16503196]
[1739592035492,0.87594972,97694.0,97693.0,0.16503196]
[1739592035645,0.89294972,97694.0,97693.0,0.16503196]
[1739592036046,0.89994972,97694.0,97693.0,0.16503196]
[1739592036558,1.03064972,97694.0,97693.0,0.09251863]
[1739592036754,1.03064972,97694.0,97693.0,0.07204663]
[1739592037106,0.563043,97692.0,97691.0,1.7e-07]
[1739592037316,0.68854665,97692.0,97691.0,1.7e-07]
[1739592037534,0.69264465,97692.0,97691.0,1.7e-07]
[1739592038309,0.69964465,97692.0,97691.0,0.00100017]
[1739592039030,0.70664465,97692.0,97691.0,0.00100017]
[1739592039671,0.8091483,97692.0,97691.0,0.00100017]
[1739592040936,1.1323483,97692.0,97691.0,0.00100017]
[1739592041359,1.1323483,97692.0,97691.0,1.7e-07]
[1739592042818,1.02984465,97692.0,97691.0,1.7e-07]
[1739592043003,1.02984465,97692.0,97691.0,0.00010667]
[1739592045331,1.05057432,97692.0,97691.0,0.00010667]
[1739592045859,1.05057432,97692.0,97691.0,6.7e-07]
[1739592046685,1.04357432,97692.0,97691.0,6.7e-07]
[1739592046888,1.14607797,97692.0,97691.0,6.7e-07]
[1739592047097,1.17774331,97692.0,97691.0,6.7e-07]
[1739592047583,1.17074331,97692.0,97691.0,6.7e-07]
[1739592047763,1.17774331,97692.0,97691.0,6.7e-07]
[1739592048201,1.18474331,97692.0,97691.0,6.7e-07]
[1739592048384,1.17474331,97692.0,97691.0,6.7e-07]
[1739592048582,1.16774331,97692.0,97691.0,6.7e-07]
[1739592048797,1.18474331,97692.0,97691.0,6.7e-07]
[1739592048998,1.17774331,97692.0,97691.0,6.7e-07]
[1739592049434,1.18474331,97692.0,97691.0,6.7e-07]
[1739592049799,1.17774331,97692.0,97691.0,6.7e-07]
[1739592050002,1.18474331,97692.0,97691.0,6.7e-07]
[1739592051651,0.323583,97667.0,97657.0,0.08222374]
[1739592051909,0.74928665,97667.0,97657.0,0.08222374]
[1739592052415,0.74928665,97667.0,97651.0,0.0001065]
[1739592053015,0.85698665,97667.0,97651.0,0.0001065]
[1739592053139,0.88698665,97667.0,97651.0,0.0001065]
[1739592053492,0.86398665,97667.0,97651.0,0.0001065]
[1739592054533,0.86398665,97667.0,97666.0,0.0001765]
[1739592054875,0.87098665,97667.0,97666.0,0.0001765]
[1739592055411,0.87124136,97667.0,97666.0,0.0001765]
[1739592055632,0.59328665,97667.0,97666.0,0.0001765]
[1739592056222,0.74328665,97667.0,97666.0,0.0001765]
[1739592056622,0.59328665,97667.0,97666.0,0.0001765]
[1739592058638,0.74328665,97667.0,97666.0,0.0001765]
[1739592059418,0.72928665,97667.0,97666.0,0.0001765]
[1739592059855,0.74328665,97667.0,97666.0,0.0001765]
[1739592061061,0.73628665,97667.0,97666.0,0.0001765]
[1739592061176,0.74328665,97667.0,97666.0,0.0001765]
[1739592061608,0.74928665,97667.0,97666.0,0.0001765]
[1739592061818,0.75628665,97667.0,97666.0,0.0001765]
[1739592062016,0.76328665,97667.0,97666.0,0.0001765]
[1739592062330,0.86398665,97667.0,97666.0,0.0001765]
[1739592062564,0.85698665,97667.0,97666.0,0.0001765]
[1739592062773,0.87098665,97667.0,97666.0,0.0001765]
[1739592063182,0.86398665,97667.0,97666.0,0.0001765]
[1739592063551,0.87098665,97667.0,97666.0,0.0001765]
[1739592064109,0.86398665,97667.0,97666.0,0.0001765]
[1739592064312,0.87098665,97667.0,97666.0,0.0001765]
[1739592064739,0.86398665,97667.0,97666.0,0.0001765]
[1739592065114,0.87098665,97667.0,97666.0,0.0001765]
[1739592065580,0.86398665,97667.0,97666.0,0.0001765]
[1739592065955,0.9734903,97667.0,97666.0,0.0001765]
[1739592066564,1.0490903,97667.0,97666.0,0.0001765]
[1739592066730,1.0964903,97667.0,97666.0,0.0001765]
[1739592067777,0.99398665,97667.0,97666.0,0.0001765]
[1739592068175,1.01698665,97667.0,97666.0,5e-07]
[1739592068373,1.04869941,97667.0,97666.0,5e-07]
[1739592070977,1.03869941,97667.0,97666.0,5e-07]
[1739592071156,1.04869941,97667.0,97666.0,5e-07]
[1739592071528,0.75269941,97667.0,97666.0,5e-07]
[1739592071716,0.71098665,97667.0,97666.0,5e-07]
[1739592071919,0.72098665,97667.0,97666.0,5e-07]
[1739592072062,0.87098665,97667.0,97666.0,5e-07]
[1739592074861,0.9734903,97667.0,97666.0,5e-07]
[1739592075066,0.9964903,97667.0,97666.0,5e-07]
[1739592075265,1.02821851,97667.0,97666.0,5e-07]
[1739592077042,1.10851851,97667.0,97666.0,5e-07]
[1739592077673,0.01,97646.0,97628.0,0.0814]
[1739592077914,0.01,97640.0,97626.0,0.0493]
[1739592078114,0.41612865,97640.0,97626.0,0.0493]
[1739592079063,0.42012865,97640.0,97639.0,0.00054084]
[1739592079218,0.41612865,97640.0,97639.0,0.00054084]
[1739592080401,0.42312865,97640.0,97639.0,0.00054084]
[1739592080605,0.43012865,97640.0,97639.0,0.00054084]
[1739592081025,0.41612865,97640.0,97639.0,0.00054084]
[1739592081215,0.43012865,97640.0,97639.0,0.00054084]
[1739592081883,0.42012865,97640.0,97639.0,0.00054084]
[1739592082614,0.42012865,97640.0,97639.0,0.08194084]
[1739592082615,0.74332865,97640.0,97639.0,0.08194084]
[1739592082806,0.59332865,97640.0,97639.0,0.08194084]
[1739592083175,0.74332865,97640.0,97639.0,0.08194084]
[1739592083807,0.73632865,97640.0,97639.0,0.08194084]
[1739592084425,0.74332865,97640.0,97639.0,0.08194084]
[1739592084684,0.74332865,97640.0,97639.0,0.00054084]
[1739592095750,0.9313323,97640.0,97639.0,0.00054084]
[1739592096315,0.82882865,97640.0,97639.0,0.00054084]
[1739592096520,0.75332865,97640.0,97639.0,0.00054084]
[1739592097320,0.76332865,97640.0,97639.0,0.00054084]
[1739592098138,0.75632865,97640.0,97639.0,0.00054084]
[1739592098352,0.86402865,97640.0,97639.0,0.00054084]
[1739592098704,0.87102865,97640.0,97639.0,0.00054084]
[1739592099111,0.86402865,97640.0,97639.0,0.00054084]
[1739592099534,0.87102865,97640.0,97639.0,0.00054084]
[1739592100632,0.87802865,97640.0,97639.0,0.00054084]
[1739592103312,0.59332865,97640.0,97639.0,0.00054084]
[1739592103568,0.57932865,97640.0,97639.0,0.00054084]
[1739592103787,0.74332865,97640.0,97639.0,0.00054084]
[1739592103992,0.3372,97640.0,97639.0,0.15416784]
[1739592104203,0.3372,97640.0,97639.0,0.07574084]
[1739592104555,0.3302,97640.0,97639.0,0.07574084]
[1739592104795,0.3372,97640.0,97639.0,0.07574084]
[1739592105330,0.3302,97640.0,97639.0,0.07574084]
[1739592105643,0.3372,97640.0,97639.0,0.22936784]
[1739592106139,0.33016,97640.0,97639.0,0.22936784]
[1739592106350,0.33716,97640.0,97639.0,0.22936784]
[1739592106591,0.021,97640.0,97639.0,0.07574084]
[1739592113368,0.02122366,97640.0,97639.0,0.07574084]
[1739592119348,0.02113245,97640.0,97639.0,0.07574084]
[1739592127656,0.02113245,97640.0,97639.0,0.22936784]
[1739592127861,0.02113245,97640.0,97639.0,0.07574084]
[1739592128064,0.02113245,97640.0,97639.0,0.22936784]
[1739592128210,0.02113245,97640.0,97639.0,0.07574084]
[1739592128773,0.02113245,97640.0,97639.0,0.22936784]
[1739592144349,0.02113245,97640.0,97639.0,0.15416784]
[1739592149639,0.00022366,97640.0,97639.0,0.15416784]
[1739592150091,0.01322366,97640.0,97639.0,0.15416784]
[1739592150552,0.00622366,97640.0,97639.0,0.15416784]
[1739592150711,0.00722366,97640.0,97639.0,0.15416784]
[1739592151113,0.01322366,97640.0,97639.0,0.15416784]
[1739592152301,4.01322366,97640.0,97639.0,0.15416784]
[1739592156989,4.00022366,97640.0,97639.0,0.15416784]
[1739592157943,4.00922366,97640.0,97639.0,0.15416784]
[1739592166697,4.00918366,97640.0,97639.0,0.15416784]
[1739592197615,4.00918366,97640.0,97639.0,0.15416784]
[1739592227881,4.00914366,97640.0,97639.0,0.15416784]
[1739592231173,4.00914366,97640.0,97639.0,0.25667149]
[1739592235089,4.00914366,97640.0,97639.0,0.35597149]
[1739592235497,4.00914366,97640.0,97639.0,0.50597149]
[1739592235699,4.00914366,97640.0,97639.0,0.53610646]
[1739592236064,4.00014366,97640.0,97639.0,0.53610646]
[1739592236890,4.00014366,97640.0,97639.0,0.53710646]
[1739592242281,4.00014366,97640.0,97639.0,0.46080646]
[1739592244341,4.00014366,97640.0,97639.0,0.43067149]
[1739592246725,4.00014366,97640.0,97639.0,0.46081427]
[1739592246929,4.00014366,97640.0,97639.0,0.43067149]
[1739592247333,4.00014366,97640.0,97639.0,0.46081473]
[1739592248079,4.00014366,97640.0,97639.0,0.43067149]
[1739592248769,4.00014366,97640.0,97639.0,0.46081523]
[1739592249771,4.00014366,97640.0,97639.0,0.43067149]
[1739592268136,4.00014366,97640.0,97639.0,0.46079189]
[1739592269872,4.00014366,97640.0,97639.0,0.45979189]
[1739592270024,4.00014366,97640.0,97639.0,0.46179189]
[1739592288694,4.00010366,97640.0,97639.0,0.46179189]
[1739592299322,3.99979641,97640.0,97639.0,0.46179189]
[1739592311002,4.00002007,97640.0,97639.0,0.46179189]
[1739592349312,3.99998007,97640.0,97639.0,0.46179189]
[1739592357159,3.83315021,97640.0,97639.0,5.23323189]
[1739592357362,3.81266721,97640.0,97639.0,5.23323189]
[1739592357568,3.61166276,97640.0,97639.0,5.32343189]
[1739592357934,3.45308888,97640.0,97639.0,5.65813189]
[1739592358156,3.38139689,97640.0,97639.0,6.25483189]
[1739592358370,3.31387053,97640.0,97639.0,6.25483189]
[1739592358576,3.24488645,97640.0,97639.0,6.25483189]
[1739592358988,3.24488645,97640.0,97639.0,6.25783189]
[1739592358989,2.86954119,97640.0,97639.0,6.25783189]
[1739592359197,1.80565937,97640.0,97639.0,6.25483189]
[1739592359370,1.48905835,97640.0,97639.0,6.25283189]
[1739592359576,1.34931946,97640.0,97639.0,6.25783189]
[1739592359783,1.32789946,97640.0,97639.0,6.25783189]
[1739592359981,1.26059096,97640.0,97639.0,6.25783189]
[1739592360195,1.05458794,97640.0,97639.0,6.25583189]
[1739592360392,1.02590288,97640.0,97639.0,6.25783189]
[1739592360614,0.96890288,97640.0,97639.0,6.25783189]
[1739592360810,0.93250288,97640.0,97639.0,6.25783189]
[1739592361016,0.91201988,97640.0,97639.0,6.25783189]
[1739592361223,0.47488737,97640.0,97639.0,6.25783189]
[1739592361427,0.46130129,97640.0,97639.0,6.25483189]
[1739592361654,0.46130129,97640.0,97639.0,6.25983189]
[1739592361780,0.41917929,97640.0,97639.0,6.25283189]
[1739592362048,0.00022366,97645.0,97639.0,6.25283189]
[1739592362049,0.00022366,97667.0,97666.0,0.303584]
[1739592362265,0.00022366,97667.0,97666.0,5.20052765]
[1739592363320,0.00222366,97667.0,97666.0,5.20852765]
[1739592363652,0.00222366,97667.0,97666.0,2.70728765]
[1739592364898,0.00222366,97667.0,97666.0,2.73800365]
[1739592369973,0.00222366,97667.0,97666.0,0.46780365]
[1739592370450,0.00222366,97667.0,97666.0,5.23924365]
[1739592373100,0.00222366,97667.0,97666.0,1.64380365]
[1739592374860,0.00122366,97667.0,97666.0,1.64180365]
[1739592375053,0.00122366,97667.0,97666.0,1.63880365]
[1739592375256,0.00122366,97667.0,97666.0,1.64480365]
[1739592375481,0.00222366,97667.0,97666.0,1.64480365]
[1739592375719,0.00222366,97667.0,97666.0,1.63880365]
[1739592375900,0.00322366,97667.0,97666.0,1.64480365]
[1739592376285,0.00222366,97667.0,97666.0,1.64180365]
[1739592376664,0.00022366,97667.0,97666.0,1.63580365]
[1739592377504,0.00122366,97667.0,97666.0,1.63880365]
[1739592378379,0.00022366,97667.0,97666.0,1.63580365]
[1739592378583,0.00122366,97667.0,97666.0,1.64480365]
[1739592378910,0.00222366,97667.0,97666.0,1.64480365]
[1739592380494,0.00222366,97667.0,97666.0,0.46880365]
[1739592380702,0.00222366,97667.0,97666.0,5.24024365]
[1739592386728,0.00222366,97667.0,97666.0,3.73540365]
[1739592387529,0.00122366,97667.0,97666.0,3.73240365]
[1739592387878,0.00122366,97667.0,97666.0,3.73540365]
[1739592388160,0.00122366,97667.0,97666.0,3.72940365]
[1739592388358,0.00222366,97667.0,97666.0,3.73540365]
[1739592389404,0.00222366,97667.0,97666.0,3.76546458]
[1739592391365,0.00222366,97667.0,97666.0,5.27030458]
[1739592392690,0.00222366,97667.0,97666.0,5.17156458]
[1739592393961,0.00222366,97667.0,97666.0,5.13466458]
[1739592394189,0.00222366,97667.0,97666.0,3.58896458]
[1739592395551,0.00222366,97667.0,97666.0,2.60716458]
[1739592395771,0.00222366,97667.0,97666.0,2.59676458]
[1739592395986,0.00222366,97667.0,97666.0,2.56426458]
[1739592396600,0.00222366,97667.0,97666.0,2.31716458]
[1739592396994,0.00222366,97667.0,97666.0,2.22276458]
[1739592405843,0.00222366,97667.0,97666.0,2.19996458]
[1739592407411,0.00222366,97667.0,97666.0,2.13826458]
[1739592410029,0.00218366,97667.0,97666.0,2.13826458]
[1739592410235,0.00218366,97667.0,97666.0,0.49886458]
[1739592410442,0.00218366,97667.0,97666.0,2.28546458]
[1739592411568,0.00218366,97667.0,97666.0,2.04306458]
[1739592415732,0.00218366,97667.0,97666.0,1.99446458]
[1739592419334,0.00211199,97667.0,97666.0,1.99446458]
[1739592420067,0.00111199,97667.0,97666.0,1.99146458]
[1739592420864,0.00111199,97667.0,97666.0,0.49586458]
[1739592421080,0.00111199,97667.0,97666.0,5.27030458]
[1739592421291,0.00211199,97667.0,97666.0,5.27030458]
[1739592421706,0.00111199,97667.0,97666.0,5.26730458]
[1739592422687,0.00211199,97667.0,97666.0,5.27030458]
[1739592424791,0.00211199,97667.0,97666.0,5.23958858]
[1739592425498,0.00211199,97667.0,97666.0,4.58714858]
[1739592425741,0.00211199,97667.0,97666.0,4.58725508]
[1739592431676,0.00211199,97667.0,97666.0,0.46825508]
[1739592432015,0.00211199,97667.0,97666.0,5.23969508]
[1739592441777,0.00111199,97667.0,97666.0,5.23369508]
[1739592441984,0.00211199,97667.0,97666.0,5.23869508]
[1739592442178,9.9e-07,97667.0,97666.0,5.23869508]
[1739592442333,9.9e-07,97667.0,97666.0,0.46725508]
[1739592442541,9.9e-07,97667.0,97666.0,0.46425508]
[1739592442947,6.5e-07,97671.0,97670.0,0.303578]
[1739592443156,6.5e-07,97671.0,97670.0,0.45914258]
[1739592444172,6.5e-07,97671.0,97670.0,0.46227297]
[1739592444723,6.5e-07,97671.0,97670.0,0.46727297]
[1739592448999,3.1e-07,97671.0,97670.0,0.46727297]
[1739592451666,3.1e-07,97671.0,97670.0,0.46727297]
[1739592455143,3.1e-07,97671.0,97670.0,0.46427297]
[1739592455350,0.00100031,97671.0,97670.0,0.47027297]
[1739592455517,0.00100031,97671.0,97670.0,0.46527297]
[1739592455720,0.00100031,97671.0,97670.0,5.24171297]
[1739592457063,0.00100031,97671.0,97670.0,0.47027297]
[1739592457199,3.1e-07,97671.0,97670.0,0.47027297]
[1739592457383,3.1e-07,97671.0,97670.0,5.24171297]
[1739592457603,3.1e-07,97671.0,97670.0,0.47027297]
[1739592461440,3.1e-07,97671.0,97670.0,0.47037947]
[1739592461681,0.00022397,97671.0,97670.0,0.47037947]
[1739592463142,0.00022397,97671.0,97670.0,5.24181947]
[1739592464331,0.00022397,97671.0,97670.0,5.26417729]
[1739592467482,0.00022397,97671.0,97670.0,0.49273729]